Workbook

Sheet Wages_Money
B2: N5 Lifeskills - Money Matters 1 Practice Created by Mr.Lafferty@mathsrevision.com
AZ7: =ROUND(RAND()*(150-72)+75,1) -> 78.4 | BA7: =CONCATENATE(AZ7,"0") -> 78.40
AZ8: =ROUND(RAND()*(3-1)+1,0)*5 -> 10
D9: ="Q1. An office table costs £ "&BA7&" plus "&AZ8&" % VAT." -> Q1. An office table costs £ 78.40 plus 10 % VAT. | V9: answer | Y9: £ | AZ9: =ROUND(AZ7+AZ7*AZ8/100,2) -> 86.24
E10: How much do I pay in total? | M10: ( to the nearest penny)
AZ11: =ROUND(RAND()*(150-72)+75,1) -> 94.6 | BA11: =CONCATENATE(AZ11,"0") -> 94.60
AZ12: =ROUND(RAND()*(3-1)+1,0)*5 -> 5
D13: ="Q2. A DAB radio costs £ "&BA11&" plus "&AZ12&" % + VAT." -> Q2. A DAB radio costs £ 94.60 plus 5 % + VAT. | V13: answer | Y13: £ | AZ13: =ROUND(AZ11+AZ11*AZ12/100,2) -> 99.33
E14: How much do I pay in total? | M14: ( to the nearest penny)
AZ15: =ROUND(RAND()*(900-145)+145,0) -> 641
AZ16: =ROUND(RAND()*(1.9-0.3)+0.3,1)*5 -> 7.5
D17: ="Q3. Sean has £"&AZ15&" in the bank . How much will he have next year if he earns "&AZ16&" % in interest. ( to the nearest penny)" -> Q3. Sean has £641 in the bank . How much will he have next year if he earns 7.5 % in interest. ( to the nearest penny) | AM17: £ | AZ17: =ROUND(AZ15+AZ15*AZ16/100,2) -> 689.08
AZ19: =ROUND(RAND()*(2900-2145)+2145,0) -> 2839
AZ20: =ROUND(RAND()*(1.9-0.3)+0.3,1)*5 -> 2.5
D21: ="Q4. Laura has £ "&AZ19&" in the bank. How much will he have next year if he earns "&AZ20&" % in interest. ( to the nearest penny)" -> Q4. Laura has £ 2839 in the bank. How much will he have next year if he earns 2.5 % in interest. ( to the nearest penny) | AM21: £ | AZ21: =ROUND(AZ19+AZ19*AZ20/100,2) -> 2909.98
D24: Q5. Below is Natalie's shopping list. Calculate the total bill.
T25: £
M26: Milk | S26: =ROUND(RAND()*(0.5-0.25)+0.25,1) -> 0.4
M27: Newspaper | S27: =ROUND(RAND()*(0.9-0.39)+0.39,1) -> 0.4
M28: Bread | S28: =ROUND(RAND()*(1.2-0.85)+0.85,1) -> 0.9
M29: Fruit | S29: =ROUND(RAND()*(1.3-0.7)+0.7,1) -> 0.9
N30: Sub - Total £ | AZ30: =ROUND(SUM(S26:U29),2) -> 2.6
O31: ="VAT @ "&BA32&" %" -> VAT @ 10 % | AZ31: =ROUND(AZ30*BA32/100,2) -> 0.26
P32: Total | AZ32: =ROUND(AZ30+AZ31,2) -> 2.86 | BA32: =ROUND(RAND()*(3-1)+1,0)*5 -> 10
D34: ="(b) How much change do I get from £"&BA34&"." -> (b) How much change do I get from £5. | R34: £ | AZ34: =ROUND(BA34-AZ32,2) -> 2.14 | BA34: =ROUND(RAND()*(2-1)+1,0)*5 -> 5
D37: Q6. Below is part of a shopping list. Fill in the missing values and then calculate the total bill.
T38: £
I39: =ROUND(RAND()*(4-2)+2,0) -> 3 | J39: Tin of Beans @ | P39: =ROUND(RAND()*(0.6-0.2)+0.2,1) -> 0.4 | AZ39: =ROUND(P39*I39,2) -> 1.2
I40: =ROUND(RAND()*(6-2)+2,0) -> 4 | J40: Cans of Juice @ | P40: =ROUND(RAND()*(0.6-0.3)+0.3,1) -> 0.4 | AZ40: =ROUND(P40*I40,2) -> 1.6
I41: =ROUND(RAND()*(6-2)+2,0) -> 3 | J41: Pints of Milk @ | P41: =ROUND(RAND()*(0.6-0.3)+0.3,1) -> 0.5 | AZ41: =ROUND(P41*I41,2) -> 1.5
I42: =ROUND(RAND()*(10-2)+2,0) -> 4 | J42: Rolls @ | P42: =ROUND(RAND()*(0.2-0.1)+0.1,1) -> 0.2 | AZ42: =ROUND(P42*I42,2) -> 0.8
N43: Sub - Total £ | AZ43: =ROUND(SUM(AZ39:AZ42),2) -> 5.1 | BA43: =ROUND(RAND()*(3-1)+1,0)*5 -> 10
O44: ="VAT @ "&BA43&" %" -> VAT @ 10 % | AZ44: =ROUND(AZ43*BA43/100,2) -> 0.51
P45: Total | AZ45: =ROUND(AZ43+AZ44,2) -> 5.61
AZ46: =ROUND(RAND()*(2-1)+1,0)*10 -> 10
D47: ="(b) How much change to I get from £ "&AZ46&"." -> (b) How much change to I get from £ 10. | R47: £ | AZ47: =ROUND(AZ46-AZ45,2) -> 4.39
D50: Q7. Complete the Electricity bill below :
E52: MacFergus Scottish Electricity Board
AZ53: =ROUND(RAND()*(8999-5001)+5001,0) -> 8989
E54: Householder :- Mrs Bissett | M54: Period :- Jan 1st - March 30th 2010 | AZ54: =ROUND(RAND()*(1200-400)+400,0) -> 685
Z55: £ | AZ55: =AZ53-AZ54 -> 8304
E56: Present Reading | J56: =AZ53 -> 8989 | Q56: ="units at "&AZ57&" p / unit" -> units at 15.2 p / unit | AZ56: =ROUND(RAND()*(8999-5001)+5001,0) -> 5364
E57: Previous Reading | J57: =AZ55 -> 8304 | S57: ="VAT @ "&BA57&" %" -> VAT @ 6 % | AZ57: =ROUND(RAND()*(16.9-9.9)+9.9,1) -> 15.2 | BA57: =ROUND(RAND()*(9-6)+6,0) -> 6
AZ58: =ROUND(AZ57*AZ54/100,2) -> 104.12
E59: Units Used : | AZ59: =ROUND(AZ58*BA57/100,2) -> 6.25
AZ60: =AZ58+AZ59 -> 110.37
C63: Q8. Part of the bill from Nathan's Garage Repairs is shown below. Complete the bill.
M65: Nathan's Garage Repair Services
M67: Date : | O67: =NOW() -> 2015-03-14T14:56:07.720
Z68: £ | AZ68: =ROUND(RAND()*(499.5-50.01)+50.01,2) -> 222.91
S69: Parts | Y69: =AZ68 -> 222.91 | AZ69: =ROUND(RAND()*(499.5-50.01)+50.01,2) -> 313.58
S70: Labour | Y70: =AZ69 -> 313.58 | AZ70: =AZ68+AZ69 -> 536.49
S71: Sub - Total | AZ71: =ROUND(AZ70*20/100,2) -> 107.3
S72: VAT @ 20% | AZ72: =AZ70+AZ71 -> 643.79
V73: Total | X73: £
